bitfinex/quotes_SOLUSD_20241021
["timestamp","ask_amount","ask_price","bid_price","bid_amount"]
[1729478246280,0.85886288,169.1,169.05,23.776884]
[1729478246481,0.85886288,169.1,169.06,1.47941951]
[1729478246685,0.85886288,169.1,169.07,1.47941951]
[1729478246891,0.85886288,169.1,169.08,1.47941951]
[1729478247079,0.85886288,169.1,169.09,1.47941951]
[1729478247280,0.85886288,169.1,169.06,1.47941951]
[1729478247488,0.85886288,169.1,169.07,1.47941951]
[1729478247676,0.85886288,169.1,169.08,1.47941951]
[1729478247876,0.85886288,169.1,169.05,23.776884]
[1729478248096,0.85886288,169.1,169.06,1.47941796]
[1729478248299,0.85886288,169.1,169.07,1.47941796]
[1729478248594,0.85886288,169.1,169.08,1.47941796]
[1729478248794,0.85886288,169.1,169.03,23.776884]
[1729478249005,0.85886288,169.1,169.04,1.47941692]
[1729478249297,0.85886288,169.1,169.05,1.47941692]
[1729478249485,0.85886288,169.1,169.06,1.47941692]
[1729478249798,0.85886288,169.1,169.07,1.47941692]
[1729478249995,0.85886288,169.1,169.08,1.47941692]
[1729478250295,0.85886288,169.1,169.09,1.47941691]
[1729478250798,0.85886288,169.1,169.04,1.47941497]
[1729478251005,0.85886288,169.1,169.05,1.4794182]
[1729478251190,0.85886288,169.1,169.06,1.4794182]
[1729478251492,0.85886288,169.1,169.07,1.4794182]
[1729478251700,0.85886288,169.1,169.08,1.4794182]
[1729478251897,0.85886288,169.1,169.03,23.776884]
[1729478252104,0.85886288,169.1,169.04,1.4794915]
[1729478252289,0.85886288,169.1,169.05,1.4794915]
[1729478252489,0.85886288,169.1,169.06,1.4794915]
[1729478252697,0.85886288,169.1,169.07,1.4794915]
[1729478252891,0.85886288,169.1,169.08,1.4794915]
[1729478253194,0.85886288,169.1,169.09,1.4794915]
[1729478253703,0.85886288,169.1,169.04,1.4794915]
[1729478253885,0.85886288,169.1,169.05,1.4794915]
[1729478254094,0.85886288,169.1,169.06,1.4794915]
[1729478254405,0.85886288,169.1,169.07,1.4794915]
[1729478254599,0.85886288,169.1,169.08,1.4794915]
[1729478254797,0.85886288,169.1,169.09,1.4794915]
[1729478254975,0.85886288,169.1,169.04,1.4794915]
[1729478255181,0.85886288,169.1,169.05,1.4794915]
[1729478255401,0.85886288,169.1,169.06,1.4794915]
[1729478255596,0.85886288,169.1,169.07,1.4794915]
[1729478255901,5.914,169.09,169.08,1.4794915]
[1729478256123,15.5913,169.09,168.99,1.4794915]
[1729478256404,15.5913,169.09,169.0,1.4794915]
[1729478256405,5.9143,169.08,169.0,1.4794915]
[1729478256596,5.9143,169.08,169.01,1.4794915]
[1729478256793,5.9143,169.08,169.02,1.4794915]
[1729478256995,5.9143,169.08,168.96,7.87953304]
[1729478256996,5.9151,169.06,169.03,1.4794915]
[1729478257197,5.9151,169.06,169.04,1.4794915]
[1729478257394,5.9151,169.06,169.05,1.4794915]
[1729478257780,5.9151,169.06,168.96,0.1]
[1729478257999,5.9151,169.06,168.97,1.4796284]
[1729478258185,5.9151,169.06,168.98,1.4796284]
[1729478258385,5.9151,169.06,168.99,1.4796284]
[1729478258679,5.9151,169.06,169.0,1.4796284]
[1729478258885,5.9151,169.06,169.01,1.4796284]
[1729478259086,5.9151,169.06,169.02,1.4796284]
[1729478259298,5.9151,169.06,169.03,1.4796284]
[1729478259510,5.9151,169.06,169.04,1.4796284]
[1729478259694,5.9151,169.06,169.05,1.4796284]
[1729478262991,0.8371076,169.07,169.05,1.4796284]
[1729478263206,0.8371076,169.07,169.06,1.4796284]
[1729478263593,0.8371076,169.07,168.99,1.4796284]
[1729478263800,0.8371076,169.07,169.0,1.4796284]
[1729478263993,0.8371076,169.07,169.01,1.4796284]
[1729478264195,0.8371076,169.07,169.02,1.4796284]
[1729478264507,0.8371076,169.07,169.03,1.4796284]
[1729478264710,0.8371076,169.07,169.04,1.4796284]
[1729478264913,0.8371076,169.07,169.05,1.4796284]
[1729478265204,0.8371076,169.07,168.98,23.776884]
[1729478265405,0.8371076,169.07,168.99,1.4798499]
[1729478265616,0.8371076,169.07,169.0,1.4798499]
[1729478265784,0.8371076,169.07,169.01,1.4798499]
[1729478265987,0.8371076,169.07,169.02,1.4798499]
[1729478266199,0.8371076,169.07,169.03,1.4798499]
[1729478266402,0.8371076,169.07,169.04,1.4798499]
[1729478266596,0.8371076,169.07,169.05,1.4798499]
[1729478266808,0.8371076,169.07,168.98,23.776884]
[1729478266995,0.8371076,169.07,168.99,1.47984269]
[1729478267191,0.8371076,169.07,169.0,1.47984269]
[1729478267391,0.8371076,169.07,169.01,1.47984269]
[1729478267587,0.8371076,169.07,169.02,1.47984269]
[1729478267912,0.8371076,169.07,169.03,1.47984269]
[1729478268214,0.8371076,169.07,169.04,1.47984269]
[1729478268395,0.8371076,169.07,169.05,1.47984269]
[1729478268591,0.8371076,169.07,168.98,23.776884]
[1729478268809,0.8371076,169.07,168.99,1.47984288]
[1729478269103,0.8371076,169.07,169.0,1.47984288]
[1729478269307,0.8371076,169.07,169.01,1.47984288]
[1729478269514,0.8371076,169.07,169.02,1.47984288]
[1729478269694,0.8371076,169.07,169.03,1.47984288]
[1729478269894,0.8371076,169.07,169.04,1.47984288]
[1729478270096,0.8371076,169.07,168.98,23.776884]
[1729478270294,0.8371076,169.07,168.99,1.47990184]
[1729478270495,0.8371076,169.07,169.0,1.47990184]
[1729478270811,0.8371076,169.07,169.01,1.47990184]
[1729478270991,0.8371076,169.07,169.02,1.47990184]
[1729478271193,0.8371076,169.07,169.03,1.47990184]
[1729478271497,0.8371076,169.07,169.04,1.47990184]
[1729478271697,0.8371076,169.07,168.98,23.776884]
[1729478272004,0.8371076,169.07,168.99,1.4798979]
[1729478272205,0.8371076,169.07,169.0,1.4798979]
[1729478272414,0.8371076,169.07,168.98,23.776884]
[1729478272602,0.8371076,169.07,168.99,1.47992139]
[1729478272810,6.7521076,169.07,169.0,1.47992537]
[1729478272995,6.7521076,169.07,169.01,1.47992537]
[1729478273190,6.7521076,169.07,169.02,1.47992537]
[1729478273402,6.7521076,169.07,169.03,1.47992537]
[1729478273714,6.7521076,169.07,168.98,23.776884]
[1729478273905,6.7521076,169.07,168.99,1.47993974]
[1729478274211,6.7521076,169.07,169.0,1.27993974]
[1729478274393,6.7521076,169.07,168.98,23.776884]
[1729478278996,0.8371076,169.07,168.98,23.776884]
[1729478281594,0.8371076,169.07,169.0,39.404484]
[1729478281795,0.8371076,169.07,169.02,23.776884]
[1729478282609,0.8371076,169.07,169.01,23.776884]
[1729478283100,0.8371076,169.07,169.0,15.6276]
[1729478284597,0.8371076,169.07,168.99,6.2457]
[1729478285620,5.915,169.06,168.98,20.0]
[1729478286120,5.915,169.06,168.99,1.47985329]
[1729478286299,5.915,169.06,169.0,1.47985329]
[1729478286500,5.915,169.06,169.01,1.47985329]
[1729478286717,5.915,169.06,169.02,1.47985329]
[1729478286923,5.915,169.06,169.03,1.47985329]
[1729478287107,5.915,169.06,169.04,1.47985329]
[1729478287305,5.915,169.06,168.97,20.0]
[1729478287502,5.915,169.06,168.98,1.47987297]
[1729478287816,5.915,169.06,168.99,1.47987297]
[1729478288021,5.915,169.06,169.0,1.47987297]
[1729478288204,5.915,169.06,169.01,1.47987297]
[1729478288533,5.915,169.06,169.02,1.47987297]
[1729478288695,5.915,169.06,169.03,1.47987297]
[1729478288894,5.915,169.06,169.04,1.47987297]
[1729478289109,5.915,169.06,169.05,1.47987297]
[1729478289424,5.915,169.06,168.98,1.47987297]
[1729478289624,5.915,169.06,168.99,1.47987297]
[1729478289918,6.0424,169.06,169.0,1.47987297]
[1729478290126,6.0424,169.06,169.01,1.47987297]
[1729478290419,6.0424,169.06,168.94,12.59999114]
[1729478290420,0.8371076,169.07,169.02,1.47987297]
[1729478290601,0.8371076,169.07,169.03,1.47987297]
[1729478290924,0.8371076,169.07,169.04,1.47987297]
[1729478291097,0.8371076,169.07,169.05,1.47987297]
[1729478291297,0.8371076,169.07,169.06,1.47987297]
[1729478293404,0.8371076,169.07,169.06,1.47976404]
[1729478293705,0.8371076,169.07,169.06,1.47977677]
[1729478296325,6.7518076,169.07,169.06,1.47977677]
[1729478298810,0.8371076,169.07,169.06,1.47977677]
[1729478300619,0.8371076,169.07,168.98,16.5564]
[1729478300823,0.8371076,169.07,169.0,23.776884]
[1729478301002,0.8371076,169.07,169.01,1.47982981]
[1729478301207,0.8371076,169.07,169.02,1.47982981]
[1729478301423,0.8371076,169.07,169.03,1.47982981]
[1729478301628,0.8371076,169.07,169.04,1.47982981]
[1729478301809,0.8371076,169.07,169.05,1.47982981]
[1729478302014,0.8371076,169.07,169.06,1.47982981]
[1729478305222,0.8371076,169.07,169.06,25.25671381]
[1729478308228,0.8371076,169.07,169.05,23.776884]
[1729478308407,0.8371076,169.07,169.06,25.25621898]
[1729478311626,0.8371076,169.07,169.06,25.25620035]
[1729478313927,0.8371076,169.07,169.06,45.25620035]
[1729478315215,0.8371076,169.07,169.06,43.776884]
[1729478315410,0.8371076,169.07,169.06,45.25616729]
[1729478315718,0.8371076,169.07,169.06,45.25616666]
[1729478317024,0.8371076,169.07,169.06,59.28573232]
[1729478317230,0.8371076,169.07,169.06,65.93053232]
[1729478318031,0.8371076,169.07,169.06,59.7804997]
[1729478318233,0.8371076,169.07,169.06,45.25616666]
[1729478319733,0.8371076,169.07,169.06,22.75616666]
[1729478319941,0.8371076,169.07,169.06,1.47928266]
[1729478321920,0.8371076,169.07,169.06,25.25616666]
[1729478322426,0.8371076,169.07,169.06,23.776884]
[1729478322654,0.8371076,169.07,169.06,25.25616466]
[1729478326829,0.8371076,169.07,169.06,23.776884]
[1729478327032,0.8371076,169.07,169.06,25.25615018]
[1729478342951,0.8371076,169.07,169.06,23.776884]
[1729478343156,0.8371076,169.07,169.06,25.25617006]
[1729478346544,0.8371076,169.07,169.06,23.776884]
[1729478346857,0.8371076,169.07,169.06,1.47927919]
[1729478357366,0.8371076,169.07,168.98,23.776884]
[1729478357566,0.8371076,169.07,169.0,23.776884]
[1729478357756,0.8371076,169.07,169.01,1.47957586]
[1729478357960,0.8371076,169.07,169.02,1.47957586]
[1729478358164,0.8371076,169.07,169.03,1.47957586]
[1729478358352,0.8371076,169.07,169.04,1.47957586]
[1729478358551,0.8371076,169.07,169.05,1.47957586]
[1729478358847,0.8371076,169.07,169.06,1.47957586]
[1729478360942,0.8371076,169.07,168.98,23.776884]
[1729478361148,0.8371076,169.07,168.99,1.47963256]
[1729478361347,0.8371076,169.07,169.0,1.47963256]
[1729478361569,0.8371076,169.07,169.01,1.47963256]
[1729478361766,0.8371076,169.07,169.02,1.47963256]
[1729478361957,0.8371076,169.07,169.03,1.47963256]
[1729478362269,0.8371076,169.07,169.04,1.47963256]
[1729478362468,0.8371076,169.07,169.05,1.47963256]
[1729478362647,0.8371076,169.07,169.06,1.47963256]
[1729478364753,0.8371076,169.07,168.98,23.776884]
[1729478364964,0.8371076,169.07,168.99,1.4796327]
[1729478365154,0.8371076,169.07,169.0,1.4796327]
[1729478365355,0.8371076,169.07,169.01,1.4796327]
[1729478365560,0.8371076,169.07,169.02,1.4796327]
[1729478365867,0.8371076,169.07,169.03,1.4796327]
[1729478366052,0.8371076,169.07,169.04,1.4796327]
[1729478366248,0.8371076,169.07,169.05,1.4796327]
[1729478366456,0.8371076,169.07,169.06,1.4796327]
[1729478368370,0.8371076,169.07,169.0,23.776884]
[1729478368761,0.8371076,169.07,169.06,1.47962145]
[1729478369060,0.8371076,169.07,169.06,2.95924496]
[1729478369262,0.8371076,169.07,169.06,1.47962351]
[1729478372260,0.8371076,169.07,169.02,23.776884]
[1729478372453,0.8371076,169.07,169.04,23.776884]
[1729478372657,0.8371076,169.07,169.05,1.47944442]
[1729478372867,0.8371076,169.07,169.06,1.47944442]
[1729478375957,0.8371076,169.07,169.05,20.0]
[1729478376158,0.8371076,169.07,169.06,1.47929687]
[1729478376358,0.8371076,169.07,169.06,25.25618087]
[1729478378258,15.0027,169.14,169.07,23.776884]
[1729478378459,15.0027,169.14,169.08,1.47929687]
[1729478378680,15.0027,169.14,169.09,1.47929687]
[1729478378860,15.0027,169.14,169.1,1.47929687]
[1729478379176,15.0027,169.14,169.11,1.47929687]
[1729478379373,15.0027,169.14,169.12,1.47929687]
[1729478379581,0.81245221,169.13,169.07,23.776884]
[1729478379780,0.81245221,169.13,169.08,1.47926972]
[1729478380080,0.81245221,169.13,169.09,1.47926972]
[1729478380286,0.81245221,169.13,169.1,1.47926918]
[1729478380575,0.81245221,169.13,169.11,1.47926918]
[1729478380780,0.81245221,169.13,169.12,1.47926918]
[1729478382278,6.72505221,169.13,169.12,1.47926918]
[1729478382665,0.81245221,169.13,168.99,0.1]
[1729478382876,5.9133,169.11,169.0,1.57947813]
[1729478383181,5.9133,169.11,169.01,1.47947813]
[1729478383365,5.9133,169.11,169.03,23.776884]
[1729478383570,5.9133,169.11,169.04,1.47947813]
[1729478383781,5.9133,169.11,169.05,1.47947813]
[1729478383977,5.9133,169.11,169.06,1.47947813]
[1729478384176,5.9133,169.11,169.07,1.47947813]
[1729478384487,5.9133,169.11,169.08,1.47947813]
[1729478384670,0.812645,169.1,169.09,1.47947813]
[1729478390903,0.812645,169.1,169.09,1.47923641]
[1729478394178,6.726245,169.1,169.09,1.47923641]
[1729478394485,6.726245,169.1,169.0,23.876884]
[1729478394683,6.726245,169.1,169.01,1.47948457]
[1729478394872,6.726245,169.1,169.02,25.25636857]
[1729478395067,6.726245,169.1,169.03,1.47948457]
[1729478395280,0.812645,169.1,169.04,1.47948457]
[1729478395489,0.812645,169.1,169.05,1.47948457]
[1729478395684,0.812645,169.1,169.06,1.47948457]
[1729478396007,0.812645,169.1,169.07,1.47948457]
[1729478396293,0.812645,169.1,169.08,1.47948457]
[1729478396596,0.812645,169.1,169.09,1.47948457]
[1729478398277,0.812645,169.1,169.09,1.47932889]
[1729478400996,0.812645,169.1,169.04,23.776884]
[1729478401202,0.812645,169.1,169.09,1.47943363]
[1729478404577,0.812645,169.1,169.09,1.47945028]
[1729478407977,6.726245,169.1,169.09,1.47945028]
[1729478408295,6.726245,169.1,169.0,0.1]
[1729478408496,6.726245,169.1,169.09,1.4794871]
[1729478408702,0.812645,169.1,169.09,1.4794871]
[1729478412085,0.812645,169.1,169.09,1.47940455]
[1729478413598,6.726245,169.1,169.09,1.47940455]
[1729478413997,13.221445,169.1,169.09,1.47940455]
[1729478414310,16.3862,169.08,168.97,6.2206]
[1729478415102,5.9154,169.06,168.97,6.2206]
[1729478415288,0.8607153,169.05,168.97,6.2206]
[1729478415695,6.7761153,169.05,168.97,0.1]
[1729478415899,0.8607153,169.05,168.93,6.238]
[1729478416131,5.9163,169.03,168.97,0.1]
[1729478416407,5.9156,169.05,168.97,0.1]
[1729478416781,5.9169,169.01,168.94,20.0]
[1729478416982,6.0688,169.04,168.97,0.1]
[1729478417301,16.2265,169.03,168.97,0.1]
[1729478417501,16.2265,169.03,168.92,20.0]
[1729478417704,22.1429,169.03,168.92,7.64967749]
[1729478417999,23.00395428,169.03,168.91,15.3163]
[1729478418205,5.9167,169.02,168.91,15.3163]
[1729478418510,17.08755428,169.03,168.91,15.3163]
[1729478418511,5.917,169.01,168.91,15.3163]
[1729478419189,5.917,169.01,168.92,20.0]
[1729478419980,22.1428,169.03,168.92,20.0]
[1729478420179,16.2265,169.03,168.92,20.0]
[1729478420385,5.9165,169.02,168.92,20.0]
[1729478421213,0.88793427,169.01,168.92,20.1]
[1729478421907,0.88793427,169.01,168.92,20.0]
[1729478422088,0.88793427,169.01,168.92,20.1]
[1729478424905,0.88793427,169.01,168.93,1.48017854]
[1729478425112,0.88793427,169.01,168.94,1.48017854]
[1729478425418,0.88793427,169.01,168.95,1.48017854]
[1729478425716,0.88793427,169.01,168.96,1.48017854]
[1729478425923,0.88793427,169.01,168.97,1.48017854]
[1729478426083,0.88793427,169.01,168.98,1.48017854]
[1729478426283,0.88793427,169.01,168.99,1.48017854]
[1729478426498,0.88793427,169.01,168.91,23.776884]
[1729478426692,0.88793427,169.01,168.92,21.48017626]
[1729478426892,0.88793427,169.01,168.93,1.48017626]
[1729478427093,6.80473427,169.01,168.94,1.48017626]
[1729478427294,6.80473427,169.01,168.95,1.48017626]
[1729478427494,0.88793427,169.01,168.96,1.48017626]
[1729478427692,0.88793427,169.01,168.97,1.48017626]
[1729478427894,0.88793427,169.01,168.98,1.48017626]
[1729478428095,0.88793427,169.01,168.92,20.0]
[1729478428296,0.88793427,169.01,168.93,1.4801766]
[1729478428491,0.88793427,169.01,168.94,1.4801766]
[1729478428695,0.88793427,169.01,168.95,1.4801766]
[1729478428901,0.88793427,169.01,168.96,1.4801766]
[1729478429099,0.88793427,169.01,168.97,1.4801766]
[1729478429312,0.88793427,169.01,168.98,25.2570606]
[1729478429491,0.88793427,169.01,168.99,1.4801766]
[1729478429690,0.88793427,169.01,169.0,1.4801766]
[1729478429906,0.88793427,169.01,168.97,1.4801766]
[1729478430215,0.88793427,169.01,168.98,1.4801766]
[1729478430393,0.88793427,169.01,168.99,1.4801766]
[1729478430596,0.88793427,169.01,169.0,1.4801766]
[1729478431218,0.88793427,169.01,168.94,20.0]
[1729478431397,0.88793427,169.01,168.95,1.48009977]
[1729478431598,0.88793427,169.01,168.94,20.0]
[1729478431599,0.88793427,169.01,168.96,1.48009977]
[1729478431918,0.88793427,169.01,168.97,1.48009977]
[1729478432117,16.86483427,169.01,168.95,1.48009977]
[1729478432304,5.9174,169.0,168.96,1.48009977]
[1729478432504,5.9174,169.0,168.97,1.48009977]
[1729478432693,5.9174,169.0,168.98,1.48009977]
[1729478432894,5.9174,169.0,168.99,1.48009977]
[1729478433107,23.21283427,169.01,168.99,1.48009977]
[1729478433292,23.21283427,169.01,169.0,1.48009977]
[1729478433494,23.21283427,169.01,168.92,1.48009977]
[1729478433703,29.12963427,169.01,168.93,1.48009977]
[1729478433907,29.12963427,169.01,168.94,1.48009977]
[1729478434102,29.12963427,169.01,168.95,1.48009977]
[1729478434303,23.21283427,169.01,168.96,1.48009977]
[1729478434622,23.21283427,169.01,168.97,1.48009977]
[1729478434794,23.21283427,169.01,168.91,20.0]
[1729478434795,29.12983427,169.01,168.98,1.48009977]
[1729478434993,29.12983427,169.01,168.91,20.0]
[1729478435309,29.12983427,169.01,168.92,1.48018687]
[1729478435526,29.12983427,169.01,168.91,20.0]
[1729478435527,29.12983427,169.01,168.93,1.48018815]
[1729478435810,29.12983427,169.01,168.94,1.48018815]
[1729478436009,23.21283427,169.01,168.95,1.48018815]
[1729478436211,5.9171,169.0,168.96,1.48018815]
[1729478436403,5.9171,169.0,168.97,1.48018815]
[1729478436716,5.9171,169.0,168.91,20.0]
[1729478436909,5.9171,169.0,168.92,1.48025296]
[1729478437216,5.9171,169.0,168.93,1.48025296]
[1729478437421,5.9171,169.0,168.94,1.48025296]
[1729478437714,5.9171,169.0,168.95,1.48025296]
[1729478438018,5.9171,169.0,168.96,1.48025296]
[1729478438228,5.9171,169.0,168.97,1.48025296]
[1729478438426,5.9171,169.0,168.91,20.0]
[1729478438717,5.9171,169.0,168.92,1.48025251]
[1729478438925,5.9171,169.0,168.93,1.48025251]
[1729478439121,20.0,168.99,168.92,1.48025251]
[1729478439417,5.9171,169.0,168.93,1.48025251]
[1729478439719,5.9171,169.0,168.94,1.48025251]
[1729478439899,5.9171,169.0,168.95,1.48025251]
[1729478440101,5.9171,169.0,168.96,1.48025251]
[1729478440320,5.9171,169.0,168.9,23.776884]
[1729478440517,5.9171,169.0,168.91,1.48030561]
[1729478440705,5.9171,169.0,168.92,1.48030561]
[1729478440905,5.9171,169.0,168.93,1.48030561]
[1729478441116,5.9171,169.0,168.94,1.48030561]
[1729478441425,5.9171,169.0,168.95,1.48030561]
[1729478441617,5.9171,169.0,168.96,1.48030561]
[1729478441919,5.9171,169.0,168.9,23.776884]
[1729478442100,5.9171,169.0,168.91,1.48031701]
[1729478442426,5.9171,169.0,168.92,1.48031701]
[1729478442595,5.9171,169.0,168.89,0.6302857]
[1729478442596,5.9171,169.0,168.93,1.48031701]
[1729478442926,5.9171,169.0,168.94,1.48031701]
[1729478443119,5.9171,169.0,168.95,1.48031701]
[1729478443305,5.9171,169.0,168.89,0.6302857]
[1729478443499,5.9178,168.98,168.9,1.48036576]
[1729478443708,5.9178,168.98,168.91,1.48036576]
[1729478443916,5.9178,168.98,168.92,1.48036576]
[1729478444118,5.9178,168.98,168.93,1.48036576]
[1729478444324,5.9178,168.98,168.94,1.48036576]
[1729478444621,0.88817434,168.97,168.95,1.48036576]
[1729478444916,0.88817434,168.97,168.89,0.6302857]
[1729478445102,0.88817434,168.97,168.9,1.48037832]
[1729478445303,0.88817434,168.97,168.91,1.48037832]
[1729478445505,0.88817434,168.97,168.92,1.48037832]
[1729478445716,0.88817434,168.97,168.93,1.48037832]
[1729478445917,0.88817434,168.97,168.94,1.48037832]
[1729478446137,0.88817434,168.97,168.95,1.48037832]
[1729478446296,0.88817434,168.97,168.89,0.6302857]
[1729478446502,0.88817434,168.97,168.9,1.48038683]
[1729478446721,0.88817434,168.97,168.89,0.6302857]
[1729478447202,0.88817434,168.97,168.89,2.11071258]
[1729478447402,0.88817434,168.97,168.9,1.48042688]
[1729478447627,0.88817434,168.97,168.91,1.48042688]
[1729478447922,0.88817434,168.97,168.92,1.48042688]
[1729478448127,0.88817434,168.97,168.93,1.48042688]
[1729478448339,0.88817434,168.97,168.94,1.48042688]
[1729478448507,0.88817434,168.97,168.95,1.48042688]
[1729478448701,0.88817434,168.97,168.96,1.48042688]
[1729478449120,0.88817434,168.97,168.9,1.48042688]
[1729478449322,0.88817434,168.97,168.91,1.48042688]
[1729478449528,0.88817434,168.97,168.92,1.48042688]
[1729478449825,0.88817434,168.97,168.93,1.48042688]
[1729478450006,0.88817434,168.97,168.94,1.48042688]
[1729478450206,0.88817434,168.97,168.9,0.1]
[1729478450207,0.88817434,168.97,168.95,1.48042688]
[1729478450404,0.88817434,168.97,168.9,0.1]
[1729478450405,0.88817434,168.97,168.96,1.48029054]
[1729478451020,0.88817434,168.97,168.92,1.48029054]
[1729478451321,0.88817434,168.97,168.93,1.48029054]
[1729478451626,0.88817434,168.97,168.94,1.48029054]
[1729478451821,0.88817434,168.97,168.95,1.48029054]
[1729478452027,0.88817434,168.97,168.96,1.48029054]
[1729478452430,0.88817434,168.97,168.92,1.48029054]
[1729478452617,0.88817434,168.97,168.93,1.48029054]
[1729478452819,0.88817434,168.97,168.94,1.48029054]
[1729478453122,0.88817434,168.97,168.95,1.48029054]
[1729478453321,0.88817434,168.97,168.96,1.48029054]
[1729478453906,0.88817434,168.97,168.92,1.48029054]
[1729478454106,0.88817434,168.97,168.93,1.48029054]
[1729478454307,0.88817434,168.97,168.94,1.48029054]
[1729478454502,0.88817434,168.97,168.95,1.48029054]
[1729478454807,0.88817434,168.97,168.96,1.48029054]
[1729478457809,0.88817434,168.97,168.96,1.48023677]
[1729478462814,6.80637434,168.97,168.96,1.48023677]
[1729478463016,43.30827434,168.97,168.96,1.48023677]
[1729478463532,67.18515834,168.97,168.96,1.48023677]
[1729478463734,73.32455834,168.97,168.96,1.48023677]
[1729478463936,5.9193,168.94,168.89,0.6302857]
[1729478464123,5.9193,168.94,168.9,1.48076101]
[1729478464436,5.9196,168.93,168.91,1.48089134]
[1729478464633,0.8882573,168.92,168.89,0.6302857]
[1729478464833,0.8882573,168.92,168.9,1.48089453]
[1729478465030,26.8081573,168.92,168.91,1.48089453]
[1729478465223,42.5314573,168.92,168.91,1.48089453]
[1729478466045,22.5314573,168.92,168.91,1.48089453]
[1729478466222,22.5314573,168.92,168.9,1.48089453]
[1729478466540,22.5314573,168.92,168.91,1.48089453]
[1729478466740,22.5314573,168.92,168.9,1.48089453]
[1729478466741,6.452,168.91,168.9,1.48089453]
[1729478466917,5.9206,168.9,168.89,0.6302857]
[1729478467117,5.9206,168.9,168.89,2.11157214]
[1729478467722,5.9206,168.9,168.89,0.6302857]
[1729478468128,29.697484,168.9,168.89,0.6302857]
[1729478468345,49.797484,168.9,168.89,0.6302857]
[1729478468844,49.797484,168.9,168.85,1.48128644]
[1729478468845,5.922,168.86,168.85,1.48128644]
[1729478469339,6.81159212,168.84,168.74,15.9614]
[1729478469541,6.81159212,168.84,168.75,1.48158804]
[1729478469740,5.9235,168.82,168.76,1.48158804]
[1729478469922,5.9235,168.82,168.74,15.9614]
[1729478469923,5.9235,168.82,168.77,1.48158804]
[1729478470115,5.9235,168.82,168.78,1.48158804]
[1729478470439,5.9235,168.82,168.79,1.48158804]
[1729478470647,5.9238,168.81,168.72,7.97460203]
[1729478470834,6.81308275,168.8,168.73,1.48194238]
[1729478471159,0.88888275,168.8,168.74,1.48194238]
[1729478471341,0.88888275,168.8,168.75,1.48194238]
[1729478471521,0.88888275,168.8,168.76,1.48194238]
[1729478471724,0.88888275,168.8,168.72,0.6302857]
[1729478472144,0.88888275,168.8,168.72,2.11231424]
[1729478472337,0.88888275,168.8,168.73,1.48202854]
[1729478472534,0.88888275,168.8,168.74,1.48202854]
[1729478472736,0.88888275,168.8,168.75,1.48202854]
[1729478472927,0.88888275,168.8,168.76,1.48202854]
[1729478473128,0.88888275,168.8,168.72,0.6302857]
[1729478473443,0.88888275,168.8,168.72,2.11229526]
[1729478473623,0.88888275,168.8,168.73,1.48200956]
[1729478473826,0.88888275,168.8,168.74,1.48200956]
[1729478474034,0.88888275,168.8,168.75,1.48200956]
[1729478474259,0.88888275,168.8,168.72,0.6302857]
[1729478474942,0.88888275,168.8,168.72,2.112292]
[1729478475126,0.88888275,168.8,168.73,1.4820063]
[1729478475328,0.88888275,168.8,168.74,1.4820063]
[1729478475540,0.88888275,168.8,168.72,0.6302857]
[1729478475541,0.88888275,168.8,168.75,1.4820063]
[1729478475844,0.88888275,168.8,168.72,0.6302857]
[1729478476173,0.88888275,168.8,168.72,2.11229336]
[1729478476619,0.88888275,168.8,168.73,1.48200766]
[1729478476950,5.9248,168.78,168.72,0.6302857]
[1729478477526,23.84691148,168.77,168.72,2.11242851]
[1729478477827,23.84691148,168.77,168.72,0.6302857]
[1729478482635,0.88931148,168.77,168.72,0.6302857]
[1729478486348,17.27961148,168.77,168.72,0.6302857]
[1729478487342,23.20481148,168.77,168.72,0.6302857]
[1729478488535,17.27961148,168.77,168.72,0.6302857]
[1729478488741,5.9261,168.75,168.72,0.6302857]
[1729478489241,5.9266,168.73,168.72,0.6302857]
[1729478490452,5.9263,168.74,168.72,0.6302857]
[1729478491437,20.0,168.74,168.72,0.6302857]
[1729478491757,46.60585718,168.73,168.72,0.6302857]
[1729478491959,66.70585718,168.73,168.72,0.6302857]
[1729478492155,66.60585718,168.73,168.72,0.6302857]
[1729478493949,66.70585718,168.73,168.72,0.6302857]
[1729478496947,48.75557318,168.73,168.72,0.6302857]
[1729478497139,28.75557318,168.73,168.72,0.6302857]
[1729478497562,28.85557318,168.73,168.72,0.6302857]
[1729478497756,28.75557318,168.73,168.72,0.6302857]
[1729478497966,22.82897318,168.73,168.72,0.6302857]
[1729478498163,28.75557318,168.73,168.72,0.6302857]
[1729478498865,48.75557318,168.73,168.72,0.6302857]
[1729478500440,72.63245718,168.73,168.72,0.6302857]
[1729478500845,0.1,168.69,168.58,16.1069]